bitfinex-derivatives/quotes_SOLF0:USTF0_20250606
["timestamp","ask_amount","ask_price","bid_price","bid_amount"]
[1749212698431,2.98469001,149.99,149.98,0.04487302]
[1749212698624,7.51982511,149.99,149.98,0.04487302]
[1749212699216,2.98469001,149.99,149.98,0.04487302]
[1749212699418,7.51901905,149.99,149.98,0.04487302]
[1749212699629,7.51901906,149.99,149.98,0.04487302]
[1749212699833,2.98469001,149.99,149.98,0.04487302]
[1749212700033,7.5081784,149.99,149.98,0.04487302]
[1749212700227,2.98469001,149.99,149.98,0.04487302]
[1749212700428,14.1712753,149.99,149.98,0.04487302]
[1749212700728,14.15461597,149.99,149.98,0.04487302]
[1749212700918,2.98469001,149.99,149.98,6.70847302]
[1749212701325,7.49197906,149.99,149.98,6.70847302]
[1749212702630,7.49197906,149.99,149.98,0.04487302]
[1749212703125,9.64779001,149.99,149.98,0.04487302]
[1749212703328,9.64779001,149.99,149.93,33.64]
[1749212703329,2.98469001,149.99,149.93,33.64]
[1749212703632,2.98469001,149.95,149.93,33.64]
[1749212704334,3.02826322,149.95,149.93,33.68561483]
[1749212704528,3.02826322,149.95,149.94,6.6653]
[1749212707328,7.52801246,149.95,149.94,6.6653]
[1749212707527,7.52802183,149.95,149.94,6.6653]
[1749212707728,7.52802439,149.95,149.94,6.6653]
[1749212708034,0.04357321,149.95,149.94,6.6653]
[1749212708237,3.02826322,149.95,149.94,6.6653]
[1749212708435,3.02826322,149.95,149.93,0.04561483]
[1749212708639,2.98469001,149.94,149.93,0.04561483]
[1749212708840,7.47997205,149.94,149.93,6.71141483]
[1749212709439,7.4745576,149.94,149.93,6.71141483]
[1749212709832,4.48986759,149.94,149.93,6.71141483]
[1749212710039,0.04357321,149.95,149.94,6.6653]
[1749212727657,0.04357321,149.95,149.93,0.04561483]
[1749212739765,4.70968608,149.95,149.93,0.04561483]
[1749212739959,4.47261111,149.94,149.88,33.5]
[1749212740164,4.66611287,149.91,149.88,33.5]
[1749212740966,4.71394698,149.91,149.88,33.55066805]
[1749212743066,4.71394698,149.91,149.88,0.05066805]
[1749212743871,4.66611287,149.89,149.88,0.05066805]
[1749212745966,4.66611287,149.89,149.82,33.5]
[1749212746163,4.66611287,149.87,149.82,33.5]
[1749212747070,0.04735554,149.86,149.83,0.04606144]
[1749212747873,4.66611287,149.85,149.83,0.04606144]
[1749212750873,0.04735554,149.86,149.83,0.04606144]
[1749212751175,4.66611287,149.85,149.83,0.04606144]
[1749212751975,38.18611287,149.85,149.79,33.5]
[1749212752274,4.66611287,149.82,149.79,33.5]
[1749212752965,4.71643094,149.82,149.79,0.04326072]
[1749212753775,4.66611287,149.8,149.79,0.04326072]
[1749212754269,0.05031807,149.82,149.79,0.04326072]
[1749212754471,9.33222574,149.8,149.68,41.69663854]
[1749212754768,4.66611287,149.8,149.69,6.5017]
[1749212754970,4.66611287,149.78,149.69,6.5017]
[1749212755172,4.66611287,149.78,149.7,4.66611287]
[1749212755574,0.05109457,149.75,149.73,0.04304017]
[1749212755876,0.05109457,149.75,149.74,33.52]
[1749212756270,4.71720744,149.75,149.73,0.04304017]
[1749212757477,0.05109457,149.75,149.73,0.04304017]
[1749212757677,4.66611287,149.74,149.73,0.04304017]
[1749212758071,4.66611287,149.74,149.69,35.638]
[1749212759073,0.05109457,149.75,149.7,0.04282559]
[1749212759273,4.68079126,149.73,149.7,0.04282559]
[1749212760875,4.68043954,149.74,149.7,0.04282559]
[1749212761081,0.05109457,149.75,149.7,4.72326513]
[1749212761874,0.05109457,149.75,149.72,4.68043954]
[1749212762071,4.73153411,149.75,149.7,0.04282559]
[1749212762275,4.73153411,149.75,149.71,34.04]
[1749212763481,4.73153411,149.75,149.7,0.04282559]
[1749212763675,4.73153411,149.75,149.7,34.08282559]
[1749212764775,4.68043954,149.73,149.7,34.08282559]
[1749212766982,0.05109457,149.75,149.7,34.08282559]
[1749212767180,4.68043954,149.74,149.7,34.08282559]
[1749212767382,0.05109457,149.75,149.7,34.08282559]
[1749212767583,4.68043954,149.73,149.7,34.08282559]
[1749212769283,0.05109457,149.75,149.7,34.08282559]
[1749212769479,4.68043954,149.74,149.7,34.08282559]
[1749212771586,0.05109457,149.75,149.71,4.68043954]
[1749212771774,0.05109457,149.75,149.71,11.24703954]
[1749212773681,0.05109457,149.75,149.71,6.5666]
[1749212773878,0.05109457,149.75,149.7,0.04282559]
[1749212774081,4.67940271,149.72,149.7,0.04282559]
[1749212774285,4.68188911,149.71,149.7,0.04282559]
[1749212774876,0.04766225,149.72,149.7,0.04282559]
[1749212775184,4.68339779,149.71,149.64,34.04]
[1749212775387,34.04,149.72,149.64,34.04]
[1749212775590,4.68339779,149.7,149.64,34.04]
[1749212776088,0.04768448,149.68,149.66,0.04337385]
[1749212776393,4.73110987,149.68,149.66,0.04337385]
[1749212776692,0.04768448,149.68,149.66,0.04337385]
[1749212778697,0.04768448,149.68,149.67,6.6773]
[1749212782990,38.72335508,149.75,149.66,4.72672893]
[1749212783189,4.68335508,149.75,149.68,4.68335508]
[1749212783380,4.68335508,149.77,149.76,6.6734]
[1749212783885,0.0456604,149.78,149.77,6.6729]
[1749212784098,0.05114185,149.79,149.76,0.04410298]
[1749212784594,0.05114185,149.79,149.78,6.6725]
[1749212788987,43.21445508,149.84,149.83,6.6702]
[1749212789196,4.68335508,149.84,149.83,6.6702]
[1749212789600,4.68335508,149.86,149.83,6.6702]
[1749212789997,4.68335508,149.84,149.77,34.04]
[1749212790206,34.04,149.87,149.78,4.68335508]
[1749212790397,0.04608396,149.82,149.8,4.68335508]
[1749212790703,0.04829561,149.82,149.81,34.04]
[1749212791100,0.04829561,149.82,149.81,40.7111]
[1749212791502,0.04829561,149.82,149.81,45.39445508]
[1749212793598,9.561e-05,149.82,149.81,45.39445508]
[1749212793795,9.561e-05,149.82,149.81,51.90225508]
[1749212794512,4.68335508,149.9,149.89,6.6676]
[1749212798005,0.04230717,149.91,149.9,6.6671]
[1749212799614,4.1971,149.97,149.96,6.6645]
[1749212801717,6.83428287,149.98,149.97,6.664]
[1749212801918,4.73248287,149.98,149.97,6.664]
[1749212805324,0.04912779,149.98,149.97,6.664]
[1749212815025,4.71493664,149.98,149.97,6.664]
[1749212816020,4.71493664,149.98,149.96,6.6643]
[1749212816220,4.66580885,149.97,149.96,6.6643]
[1749212821924,4.71493664,149.98,149.97,6.664]
[1749212822318,4.71493664,149.98,149.95,0.04263931]
[1749212823127,4.71493664,149.98,149.96,6.6642]
[1749212824027,4.71493664,149.98,149.95,6.70733931]
[1749212824227,4.66580885,149.96,149.95,6.70733931]
[1749212825133,0.04912779,149.98,149.95,6.70733931]
[1749212825134,0.04912779,149.98,149.97,6.664]
[1749212825333,4.71493664,149.98,149.97,6.664]
[1749212825530,0.04912779,149.98,149.97,6.664]
[1749212827032,0.04912779,149.98,149.95,0.04263931]
[1749212827033,35.9653,150.05,150.02,6.6616]
[1749212827229,35.9653,150.05,149.96,33.74]
[1749212827230,4.66580885,150.03,149.96,33.74]
[1749212827625,4.66580885,150.03,150.01,6.6619]
[1749212827825,4.66580885,150.03,149.96,33.74]
[1749212828025,4.66580885,150.03,149.98,0.04376076]
[1749212828026,0.04811856,150.01,149.98,0.04376076]
[1749212828525,0.04811856,150.01,150.0,6.6627]
[1749212833837,20.0,150.11,150.0,33.74]
[1749212833838,33.74,150.1,150.0,33.74]
[1749212834031,4.66580885,150.06,150.0,33.74]
[1749212834234,4.45875818,150.05,150.0,33.74]
[1749212834435,4.66580885,150.06,150.0,33.74]
[1749212834630,4.46799293,150.05,150.0,33.74]
[1749212834837,0.05086108,150.04,150.01,0.0449541]
[1749212835138,0.05086108,150.04,150.03,6.6614]
[1749212837336,2.77849284,150.1,150.03,11.98097691]
[1749212837535,33.74,150.27,150.09,5.32097691]
[1749212837732,33.74,150.27,150.18,5.31230963]
[1749212837937,2.1902,150.29,150.22,5.31230963]
[1749212838333,0.04699542,150.27,150.24,0.04253756]
[1749212838538,0.0434097,150.27,150.24,0.05059926]
[1749212838939,0.0434097,150.27,150.26,6.6512]
[1749212839538,5.35692298,150.27,150.18,33.74]
[1749212839735,2.2484,150.26,150.18,33.74]
[1749212839937,33.74,150.25,150.23,6.6521]
[1749212840136,33.74,150.25,150.18,39.05351328]
[1749212840547,39.05351328,150.25,150.24,6.652]
[1749212841243,33.74,150.25,150.24,6.652]
[1749212841439,41.70824841,150.25,150.23,6.6524]
[1749212841646,41.70824841,150.25,150.2,0.04445814]
[1749212842239,41.70824841,150.25,150.22,6.6527]
[1749212842638,33.74,150.25,150.22,6.6527]
[1749212842839,7.96824841,150.24,150.22,6.6527]
[1749212843246,7.96824841,150.24,150.23,6.6525]
[1749212844351,33.74,150.25,150.24,6.652]
[1749212845452,33.74,150.25,150.2,0.04445814]
[1749212845656,7.96824841,150.22,150.2,0.04445814]
[1749212846052,0.04836684,150.23,150.22,6.6529]
[1749212853256,0.04836684,150.23,150.21,6.6533]
[1749212853460,7.96824841,150.22,150.21,6.6533]
[1749212853860,7.97282914,150.22,150.21,6.6533]
[1749212856569,7.97193445,150.22,150.21,6.6533]
[1749212858464,0.04836684,150.23,150.22,6.6529]
[1749212861171,5.36186531,150.23,150.22,6.6529]
[1749212861473,0.04836684,150.23,150.22,6.6529]
[1749212862273,5.31349847,150.27,150.26,6.6512]
[1749212863476,0.0452497,150.28,150.27,6.6507]
[1749212866578,2.2568,150.36,150.26,5.31349847]
[1749212866880,5.31349847,150.35,150.26,5.31349847]
[1749212867179,2.129,150.37,150.28,5.31349847]
[1749212867379,5.31349847,150.34,150.2,2.1266]
[1749212867675,6.647,150.36,150.25,0.05011076]
[1749212867881,5.31349847,150.32,150.29,0.04795682]
[1749212868180,2.1532,150.35,150.31,6.649]
[1749212868375,5.31349847,150.32,150.29,0.04795682]
[1749212868577,5.31349847,150.3,150.29,0.04795682]
[1749212868873,5.31012748,150.3,150.29,0.04795682]
[1749212869872,5.31053929,150.3,150.29,0.04795682]
[1749212870776,5.31053929,150.3,150.2,7.43713929]
[1749212870777,5.311178,150.3,150.2,2.1266]
[1749212870979,5.31144385,150.26,150.2,2.1266]
[1749212871377,5.31144385,150.26,150.23,6.6522]
[1749212871682,5.31144385,150.27,150.2,2.1266]
[1749212871883,0.04662228,150.25,150.24,6.6518]
[1749212872278,0.04662228,150.25,150.22,0.04313504]
[1749212872977,5.35806613,150.25,150.22,6.69583504]
[1749212873477,5.35806613,150.25,150.23,6.6524]
[1749212874381,0.04662228,150.25,150.24,6.6521]
[1749212878579,0.04662228,150.25,150.22,0.04313504]
[1749212878788,5.31037356,150.23,150.22,0.04313504]
[1749212878985,11.96645166,150.23,150.22,0.04313504]
[1749212879684,5.31395166,150.23,150.17,6.655]
[1749212879882,4.97392231,150.25,150.15,384.10752]
[1749212879883,5.31395166,150.21,150.15,384.10752]
[1749212880083,5.31395166,150.21,150.18,6.6548]
[1749212880280,5.31395166,150.21,150.15,0.34752]
[1749212880588,0.04646764,150.2,150.17,6.655]
[1749212880980,5.31395166,150.19,150.16,0.04711827]
[1749212881183,0.04646764,150.2,150.16,0.04711827]
[1749212881677,5.31395166,150.28,150.18,5.31395166]
[1749212881884,2.64275667,150.27,150.2,5.31395166]
[1749212882178,7.96502343,150.26,150.2,5.31395166]
[1749212882386,5.31395166,150.24,150.16,5.31395166]
[1749212882687,0.04624118,150.22,150.18,0.0484033]
[1749212882892,0.04624118,150.22,150.18,0.04396076]
[1749212882893,0.04680535,150.22,150.18,0.04396076]
[1749212883186,0.04680535,150.22,150.19,6.6543]
[1749212883389,0.04680535,150.22,150.18,0.04396076]
[1749212883779,5.36075701,150.22,150.18,0.04396076]
[1749212883985,6.6544,150.19,150.18,0.04396076]
[1749212884288,5.31395166,150.19,150.18,0.04396076]
[1749212884487,11.96835166,150.19,150.18,0.04396076]
[1749212885285,0.04680535,150.22,150.18,6.69866076]
[1749212885491,0.04680535,150.22,150.18,0.04396076]
[1749212886583,6.70010535,150.22,150.18,6.69846076]
[1749212886980,5.31395166,150.19,150.18,0.04396076]
[1749212887591,11.97193626,150.19,150.18,0.04396076]
[1749212888280,5.31755402,150.19,150.18,0.04396076]
[1749212889083,0.04680535,150.22,150.18,0.04396076]
[1749212889289,5.36290136,150.22,150.18,0.04396076]
[1749212889688,0.04680535,150.22,150.18,0.04396076]
[1749212889889,0.04680535,150.22,150.21,6.6535]
[1749212890887,0.04680535,150.22,150.19,6.654]
[1749212891094,5.36290136,150.22,150.18,0.04396076]
[1749212891288,8.02038547,150.22,150.18,0.04396076]
[1749212893091,7.97358012,150.2,150.18,0.04396076]
[1749212893500,6.6544,150.19,150.18,0.04396076]
[1749212893899,7.97358012,150.2,150.1,7.97358012]
[1749212894099,6.6556,150.17,150.1,7.97358012]
[1749212894692,6.6556,150.17,150.13,6.6568]
[1749212894891,0.04498245,150.17,150.13,6.70092311]
[1749212895199,0.04498245,150.17,150.13,0.04412311]
[1749212895587,0.04498245,150.17,150.16,6.6557]
[1749212897499,7.97358012,150.23,150.14,7.97358012]
[1749212897699,7.97358012,150.23,150.11,13.64295]
[1749212897700,7.97358012,150.19,150.11,0.32735]
[1749212897899,6.6552,150.18,150.15,6.6561]
[1749212898103,7.97358012,150.19,150.11,0.32735]
[1749212898593,0.04916886,150.17,150.16,6.6555]
[1749212899103,0.04916886,150.17,150.15,6.6557]
[1749212899800,0.04916886,150.17,150.16,6.6557]
[1749212901099,6.18601752,150.27,150.23,6.6526]
[1749212901406,14.62192491,150.26,150.23,6.6526]
[1749212901704,7.97062491,150.26,150.17,7.97062491]
[1749212901895,14.62212491,150.26,150.17,7.97062491]
[1749212902094,14.62212491,150.26,150.2,0.05054374]
[1749212902294,14.62212491,150.26,150.22,6.6527]
[1749212902497,6.6518,150.25,150.22,6.6527]
[1749212902696,7.97062491,150.24,150.2,0.05054374]
[1749212902901,7.97062491,150.22,150.2,0.04289943]
[1749212903296,6.18601752,150.3,150.2,0.04289943]
[1749212903496,14.62302491,150.24,150.2,0.04289943]
[1749212903698,7.97062491,150.24,150.2,0.04289943]
[1749212904706,14.62302491,150.24,150.2,0.04289943]
[1749212905205,6.18601752,150.31,150.2,0.04289943]
[1749212905398,6.18601752,150.33,150.24,0.0489658]
[1749212905604,14.62122491,150.28,150.24,0.0489658]
[1749212906200,14.62122491,150.28,150.25,6.6517]
[1749212906910,7.97062491,150.28,150.25,6.6517]
[1749212907300,6.18601752,150.35,150.27,6.6506]
[1749212907504,14.61992491,150.31,150.29,0.04729205]
[1749212907704,7.97062491,150.31,150.29,0.04729205]
[1749212908008,6.6495,150.3,150.29,0.04729205]
[1749212908604,7.97062491,150.31,150.29,0.04729205]
[1749212910009,6.6496,150.3,150.29,0.04729205]
[1749212912512,7.97062491,150.29,150.2,7.97062491]
[1749212912906,6.6512,150.27,150.2,7.97062491]
[1749212913609,0.04737327,150.25,150.24,6.6522]
[1749212915609,6.6484,150.33,150.3,6.6496]
[1749212915807,2.65577243,150.32,150.3,6.6496]
[1749212916102,6.6484,150.33,150.3,6.6496]
[1749212916307,9.30408225,150.32,150.29,6.6498]
[1749212916501,6.6487,150.32,150.29,6.69321714]
[1749212916707,7.97062491,150.34,150.29,0.04341714]
[1749212917002,6.649,150.32,150.29,0.04341714]
[1749212917414,6.6492,150.31,150.29,0.04341714]
[1749212917812,383.12,150.36,150.29,0.04341714]
[1749212918011,10.62601025,150.35,150.29,0.04341714]
[1749212918206,2.65815622,150.34,150.29,0.04341714]
[1749212918402,13.2913,150.39,150.29,0.04341714]
[1749212918403,2.65650245,150.33,150.29,0.04341714]
[1749212918609,7.97062491,150.36,150.29,0.04366413]
[1749212918808,2.65650245,150.35,150.31,0.04295278]
[1749212919110,10.62706105,150.34,150.31,0.04295278]
[1749212919413,7.97062491,150.39,150.31,0.04295278]
[1749212919604,7.97062491,150.35,150.31,0.04295278]
[1749212919812,2.65642666,150.34,150.31,0.04295278]
[1749212920012,6.6487,150.32,150.31,0.04295278]
[1749212920214,9.30550008,150.32,150.31,0.04295278]
[1749212920514,7.97062491,150.35,150.31,0.04295278]
[1749212921015,6.6473,150.36,150.31,0.04295278]
[1749212921312,2.65566031,150.35,150.31,0.04295278]
[1749212921512,2.65566031,150.35,150.32,6.6484]
[1749212922214,6.6474,150.35,150.32,6.6484]
[1749212922412,2.65566031,150.39,150.33,7.97062491]
[1749212922615,2.66452983,150.38,150.34,0.04641316]
[1749212922922,7.97062491,150.4,150.34,6.69751737]
[1749212923214,2.66599517,150.39,150.35,0.04775554]
[1749212923414,2.66599517,150.41,150.38,6.6457]
[1749212923713,6.6442,150.43,150.38,0.04346995]
[1749212923919,2.66599517,150.45,150.38,8.01409486]
[1749212924112,7.97062491,150.46,150.42,6.644]
[1749212924313,9.30919517,150.45,150.42,0.05024111]
[1749212924617,7.97062491,150.44,150.42,0.05024111]
[1749212924818,14.61422491,150.44,150.42,0.05024111]
[1749212925319,7.97062491,150.47,150.42,0.05024111]
[1749212925519,6.6432,150.45,150.43,0.04292094]
[1749212925817,7.97062491,150.47,150.43,0.04292094]
[1749212926018,6.6434,150.44,150.43,0.04292094]
[1749212927320,6.6431,150.45,150.43,0.04292094]
[1749212927521,6.6431,150.45,150.42,0.04517336]
[1749212927708,7.97062491,150.47,150.42,0.04517336]
[1749212928717,6.6436,150.44,150.42,0.04517336]
[1749212928918,7.97062491,150.47,150.42,0.04517336]
[1749212929122,6.6437,150.44,150.42,0.04517336]
[1749212929423,7.97062491,150.47,150.42,0.04517336]
[1749212929615,6.6438,150.44,150.42,0.04517336]
[1749212930014,7.97062491,150.47,150.42,0.04517336]
[1749212930619,7.97062491,150.45,150.42,0.04517336]
[1749212930815,6.6441,150.43,150.42,0.04470325]
[1749212931821,7.97062491,150.47,150.42,0.04470325]
[1749212932214,2.67127856,150.52,150.42,6.68870325]
[1749212932418,7.97062491,150.48,150.45,0.04765719]
[1749212932922,6.6425,150.46,150.45,0.04765719]
[1749212933336,6.6419,150.48,150.45,6.69035719]
[1749212933631,2.67049375,150.52,150.45,0.04765719]
[1749212933828,7.97062491,150.5,150.45,0.04765719]
[1749212934029,2.67049375,150.54,150.45,0.04765719]
[1749212934234,7.97062491,150.49,150.45,0.04765719]
[1749212934423,6.642,150.48,150.45,0.04583724]
[1749212934628,7.97062491,150.48,150.45,0.0508877]
[1749212935030,6.6425,150.46,150.45,0.0508877]
[1749212935229,7.97062491,150.46,150.36,7.97062491]
[1749212935426,2.66992845,150.51,150.34,7.97062491]
[1749212935628,2.66992845,150.51,150.32,382.8]
[1749212935629,2.66992845,150.54,150.38,7.97062491]
[1749212935926,7.9424045,150.55,150.45,7.9424045]
[1749212936126,7.9424045,150.55,150.46,6.6424]
[1749212936329,0.04210388,150.52,150.48,0.04869895]
[1749212936733,6.641,150.5,150.48,0.04869895]
[1749212938237,6.6412,150.49,150.48,0.04869895]
[1749212938436,0.04210388,150.52,150.48,0.04869895]
[1749212938636,6.6407,150.5,150.48,0.04869895]
[1749212939037,0.04210388,150.52,150.48,0.04869895]
[1749212939436,6.641,150.5,150.48,0.04869895]
[1749212940138,6.6412,150.49,150.48,0.04869895]
[1749212940637,0.04210388,150.52,150.48,0.04869895]
[1749212940838,6.6412,150.49,150.48,0.04869895]
[1749212942541,6.641,150.5,150.48,0.04869895]
[1749212943543,6.6405,150.51,150.48,0.04869895]
[1749212943843,0.04210388,150.52,150.48,0.04869895]
[1749212944246,0.04210388,150.52,150.49,6.6411]
[1749212944544,0.04210388,150.52,150.48,0.04869895]
[1749212944843,6.6406,150.51,150.48,6.69009895]
[1749212945241,0.04210388,150.52,150.48,0.04869895]
[1749212945745,6.6407,150.51,150.48,0.04869895]
[1749212946146,0.04210388,150.52,150.48,0.04869895]
[1749212946742,6.6407,150.51,150.48,0.04869895]
[1749212946945,0.04210388,150.52,150.48,0.04869895]
[1749212947237,6.641,150.5,150.48,0.04869895]
[1749212947647,0.04210388,150.52,150.48,6.69029895]
[1749212947846,0.04210388,150.52,150.48,0.04869895]
[1749212948145,0.04210388,150.52,150.48,17.41999895]
[1749212948844,6.6406,150.51,150.48,17.41999895]
[1749212949246,0.04210388,150.52,150.49,6.6411]
[1749212950043,6.68240388,150.52,150.49,6.6411]
[1749212950245,0.04210388,150.52,150.48,17.42009895]
[1749212950439,6.6405,150.51,150.48,10.77869895]
[1749212950641,0.04210388,150.52,150.48,10.77869895]
[1749212950841,0.04210388,150.52,150.49,6.6409]
[1749212951144,6.6404,150.51,150.49,6.6409]
[1749212952445,0.04210388,150.52,150.48,17.42009895]
[1749212952646,0.04210388,150.52,150.48,10.77869895]
[1749212953144,6.68220388,150.52,150.49,6.641]
[1749212953742,6.68220388,150.52,150.5,6.6407]
[1749212954243,0.04210388,150.52,150.5,6.6405]
[1749212954840,0.04210388,150.52,150.51,6.6403]
[1749212956748,0.04210388,150.52,150.5,6.6405]
[1749212956948,0.04210388,150.52,150.48,10.77869895]
[1749212957342,0.04210388,150.52,150.51,6.6403]
[1749212961845,0.04210388,150.52,150.48,10.77869895]
[1749212962644,2.73711092,150.62,150.48,10.77869895]
[1749212962949,2.73711092,150.62,150.48,10.73]
[1749212963349,2.73711092,150.62,150.49,13.2823]
[1749212963544,2.73711092,150.62,150.59,6.6366]
[1749212963750,2.73711092,150.62,150.59,0.04623281]
[1749212964748,6.6363,150.6,150.59,0.04623281]
[1749212965753,2.73711092,150.62,150.48,10.73]
[1749212966453,2.73711092,150.62,150.54,6.6386]
[1749212966644,0.04717792,150.6,150.56,0.0479975]
[1749212966843,6.6376,150.57,150.56,0.0479975]
[1749212967554,6.6392,150.54,150.48,10.73]
[1749212967753,6.6392,150.54,150.52,6.6398]
[1749212968143,6.6382,150.56,150.53,6.6392]
[1749212968448,6.6869702,150.56,150.53,6.68736921]
[1749212969049,0.0487702,150.56,150.53,6.68736921]
[1749212969443,0.0487702,150.56,150.53,0.04816921]
[1749212969855,0.0487702,150.56,150.54,6.6389]
[1749212970756,0.0487702,150.56,150.55,6.6385]
[1749212973855,2.73711092,150.62,150.53,0.04816921]
[1749212974856,0.04202728,150.59,150.58,6.6372]
[1749212975056,0.04202728,150.59,150.57,0.04891076]
[1749212975257,0.04820683,150.6,150.56,0.04486776]
[1749212975455,0.04609046,150.6,150.56,0.0448154]
[1749212976257,0.04609046,150.6,150.57,6.6372]
[1749212976956,0.04609046,150.6,150.57,16.2872]
[1749212977752,0.04609046,150.6,150.57,9.65]
[1749212980551,6.68239046,150.6,150.57,9.65]
[1749212981063,0.04609046,150.6,150.57,9.65]
[1749212982462,6.68239046,150.6,150.57,9.65]
[1749212983658,6.6371,150.58,150.56,0.0448154]
[1749212983866,0.04609046,150.6,150.48,0.49285]
[1749212984063,2.73711092,150.62,150.48,0.49285]
[1749212984566,39.87,150.61,150.48,0.49285]
[1749212984762,0.0501541,150.56,150.48,0.49285]
[1749212984960,0.0501541,150.56,150.26,382.36]
[1749212985157,19.93,150.59,150.26,382.36]
[1749212985361,2.73711092,150.62,150.26,402.52]
[1749212985761,0.04977806,150.46,150.42,0.04871625]
[1749212985961,0.04949037,150.46,150.42,0.04556876]
[1749212986466,0.04949037,150.46,150.43,6.6434]
[1749212987367,0.04949037,150.46,150.44,6.6429]
[1749212987570,6.638,150.57,150.44,6.6429]
[1749212987871,6.6368,150.59,150.41,1.14]
[1749212988169,42.60711092,150.62,150.41,1.14]
[1749212988570,0.04516561,150.53,150.5,0.04720648]
[1749212988870,0.04953482,150.53,150.5,0.04591005]
[1749212992870,6.68893482,150.53,150.32,19.94]
[1749212993076,6.6394,150.53,150.32,19.94]
[1749212993674,6.6394,150.53,150.4,6.6447]
[1749212993875,0.04743309,150.48,150.45,0.0499185]
[1749212998375,0.04743309,150.48,150.31,62.0]
[1749212998579,39.87,150.52,150.15,33.2415]
[1749212999081,39.87,150.52,150.27,19.94]
[1749212999380,0.04594854,150.41,150.38,0.04606798]
[1749212999680,0.04724749,150.41,150.38,0.04282268]
[1749213000775,2.73711092,150.62,150.38,6.68282268]
[1749213000976,53.70303084,150.99,150.38,26.58]
[1749213001173,436.28303084,151.04,150.38,19.94]
[1749213001482,39.87,150.97,150.38,39.87]
[1749213001681,6.6288,150.77,150.4,39.87]
[1749213001888,0.04434906,150.69,150.66,0.04453496]
[1749213002080,0.04728085,150.6,150.57,0.04693203]
[1749213002281,66.09603796,151.11,150.54,382.58]
[1749213002485,39.87,151.04,150.54,382.58]
[1749213002686,39.87,151.02,150.54,382.58]
[1749213002981,19.93,150.8,150.54,382.58]
[1749213003174,382.42,151.11,150.54,382.58]
[1749213003380,0.04960569,150.84,150.81,0.04213558]
[1749213003586,382.42,151.01,150.81,0.04231328]
[1749213003787,382.42,151.08,150.54,382.58]
[1749213003987,382.42,151.18,150.54,382.58]
[1749213004190,382.42,151.17,150.55,19.94]
[1749213004583,382.42,151.17,150.54,382.58]
[1749213004584,19.94,151.16,150.77,62.0]
[1749213004794,6.6134,151.12,150.78,382.42]
[1749213004988,382.42,151.22,150.78,382.42]
[1749213005392,382.0,151.33,150.78,382.42]
[1749213005894,382.0,151.33,151.04,0.04251496]
[1749213006092,382.0,151.33,151.17,0.04555734]
[1749213006295,382.0,151.33,151.23,0.04248476]
[1749213006488,382.0,151.46,151.04,382.0]
[1749213006690,124.0,151.52,151.26,0.04780091]
[1749213006889,2292.06,151.71,151.2,382.0]
[1749213007095,382.0,151.7,151.37,0.04571235]
[1749213007291,124.0,151.69,151.21,382.0]
[1749213007489,124.0,151.69,151.52,7.59e-05]
[1749213007687,2292.06,151.87,151.2,382.0]
[1749213007889,382.0,151.76,151.21,382.0]
[1749213008096,124.0,151.75,151.28,62.0]
[1749213008299,124.0,151.75,151.29,382.0]
[1749213008494,124.0,151.75,151.41,6.6007]
[1749213008689,13.1395,152.13,151.29,382.0]
[1749213008994,381.42,152.09,151.29,382.0]
[1749213009192,124.0,152.08,151.29,382.0]
[1749213009490,2288.58,152.15,151.2,2288.58]
[1749213009491,2288.58,152.3,151.3,124.0]
[1749213009691,13.1271,152.27,151.31,381.42]
[1749213009898,381.42,152.26,151.31,381.42]
[1749213010095,1.14675498,152.04,151.77,0.0495865]
[1749213010298,1.14675498,152.04,151.65,381.42]
[1749213010488,124.0,152.25,151.89,0.04833859]
[1749213010691,124.0,152.25,151.76,381.42]
[1749213010892,124.0,152.25,152.05,0.04988399]
[1749213011098,381.42,152.37,151.85,381.42]
[1749213011398,381.42,152.47,151.85,381.42]
[1749213011701,380.64,152.58,151.86,62.0]
[1749213011896,1.14434159,152.25,151.86,62.0]
[1749213012094,124.0,152.56,151.85,381.42]
[1749213012289,380.64,152.65,151.85,381.42]
[1749213012895,124.0,152.64,151.85,381.42]
[1749213013198,6.5587,152.39,152.23,0.04779961]
[1749213013401,380.64,152.57,152.29,0.04320626]
[1749213013599,380.64,152.56,152.04,380.64]
[1749213013797,13.0835,152.78,152.0,380.64]